[Event "1st Gujarat GM Open 2018"]
[Site "Ahmedabad"]
[Date "2018.10.07"]
[Round "3"]
[White "Thipsay, Praveen M"]
[Black "Prasannaa.s"]
[Result "1-0"]
[ECO "C60"]
[WhiteElo "2410"]
[BlackElo "2124"]
[Annotator "ChessBase"]
[PlyCount "113"]
[EventDate "2018.10.05"]
[EventType "swiss"]
[EventCountry "IND"]
[SourceTitle "playchess.com"]
[Source "ChessBase"]
[SourceQuality "1"]
[TimeControl "5400+30"]

1. e4 {[%emt 0:00:00]} e5 {[%emt 0:00:00]} 2. Nf3 {[%emt 0:00:00]} Nc6 {[%emt 0:00:00]} 3. Bb5 {[%emt 0:00:07]} Nge7 {[%emt 0:00:00]} 4. Nc3 {[%emt 0:03:17]} g6 {[%emt 0:01:03]} 5. d4 {[%emt 0:10:49]} exd4 {[%emt 0:00:10]} 6. Nd5 {[%emt 0:00:13]} Bg7 {[%emt 0:00:07]} 7. Bg5 {[%emt 0:01:06]} h6 {[%emt 0:00:14]} 8. Bf6 {[%emt 0:01:09]} Bxf6 {[%emt 0:00:06]} 9. Nxf6+ {[%emt 0:00:15]} Kf8 {[%emt 0:00:03]} 10. Nxd4 {[%emt 0:14:03]} Nf5 {[%emt 0:00:46]} 11. exf5 {[%emt 0:08:55]} Qxf6 {[%emt 0:00:08]} 12. Bxc6 {[%emt 0:00:58]} Qe5+ {[%emt 0:05:52]} 13. Ne2 {[%emt 0:12:33]} bxc6 {[%emt 0:01:48]} 14. O-O {[%emt 0:09:57]} gxf5 {[%emt 0:08:01]} 15. Re1 {[%emt 0:02:20]} Qf6 {[%emt 0:16:39]} 16. Nf4 {[%emt 0:03:13]} d6 {[%emt 0:01:20]} 17. Nh5 {[%emt 0:16:03]} Qg5 {[%emt 0:04:22]} 18. f4 {[%emt 0:04:22]} Qg6 {[%emt 0:03:20]} 19. Re3 {[%emt 0:00:07]} c5 {[%emt 0:02:41]} 20. Rg3 {[%emt 0:01:45]} Qe6 {[%emt 0:00:08]} 21. Qd2 {[%emt 0:00:40]} Bb7 {[%emt 0:02:01]} 22. Qc3 {[%emt 0:00:53]} Ke7 {[%emt 0:00:10]} 23. Re1 {[%emt 0:04:35]} Be4 {[%emt 0:00:05]} 24. Rge3 {[%emt 0:01:23]} d5 {[%emt 0:20:23]} 25. Ng7 {[%emt 0:00:30]} Qf6 {[%emt 0:22:38]} 26. Qxc5+ {[%emt 0:00:09]} Kd7 {[%emt 0:00:01]} 27. Nxf5 {[%emt 0:01:29]} Qb6 {[%emt 0:02:22]} 28. Qe7+ {[%emt 0:00:41]} Kc6 {[%emt 0:00:37]} 29. Kh1 {[%emt 0:00:41]} Rae8 {[%emt 0:02:01]} 30. Qf6+ {[%emt 0:00:18]} Kd7 {[%emt 0:01:20]} 31. Qxf7+ {[%emt 0:00:06]} Kd8 {[%emt 0:00:09]} 32. Ng3 {[%emt 0:01:16]} Rhf8 {[%emt 0:00:28]} 33. Qg7 {[%emt 0:00:11]} Rg8 {[%emt 0:01:50]} 34. Qc3 {[%emt 0:00:06]} Qg6 {[%emt 0:01:29]} 35. Qd2 {[%emt 0:00:11]} Kc8 {[%emt 0:00:05]} 36. c4 {[%emt 0:00:17]} c6 {[%emt 0:01:51]} 37. cxd5 {[%emt 0:00:22]} Bxd5 {[%emt 0:00:03]} 38. Rc1 {[%emt 0:00:17]} Kb8 {[%emt 0:00:34]} 39. Rxe8+ {[%emt 0:01:26]} Rxe8 {[%emt 0:00:08]} 40. b4 {[%emt 0:00:05]} h5 {[%emt 0:00:57]} 41. b5 {[%emt 0:00:56]} h4 {[%emt 0:00:02]} 42. bxc6 {[%emt 0:00:11]} Bxc6 {[%emt 0:00:02]} 43. f5 {[%emt 0:00:06]} Qf6 {[%emt 0:00:15]} 44. Nh5 {[%emt 0:01:26]} Qe5 {[%emt 0:00:17]} 45. h3 {[%emt 0:00:17]} Rc8 {[%emt 0:03:37]} 46. Rf1 {[%emt 0:00:54]} Ka8 {[%emt 0:00:41]} 47. Qg5 {[%emt 0:00:35]} Qd5 {[%emt 0:01:28]} 48. Nf4 {[%emt 0:00:30]} Qxa2 {[%emt 0:00:50]} 49. Qxh4 {[%emt 0:00:05]} a5 {[%emt 0:00:04]} 50. f6 {[%emt 0:00:14]} a4 {[%emt 0:00:06]} 51. Qg5 {[%emt 0:00:53]} Qb3 {[%emt 0:00:14]} 52. Qa5+ {[%emt 0:00:35]} Kb7 {[%emt 0:00:01]} 53. Qf5 {[%emt 0:00:19]} Rd8 {[%emt 0:01:18]} 54. f7 {[%emt 0:00:56]} Bxg2+ {[%emt 0:01:24]} 55. Nxg2 {[%emt 0:00:11]} Rd3 {[%emt 0:00:05]} 56. f8=Q {[%emt 0:00:30]} Rxh3+ {[%emt 0:00:10]} 57. Kg1 {[%emt 0:00:16]} 1-0

[Event "1st Gujarat GM Open 2018"]
[Site "Ahmedabad"]
[Date "2018.10.07"]
[Round "3"]
[White "Fominyh, Alexander"]
[Black "Alan Diviya Raj"]
[Result "1-0"]
[ECO "D02"]
[WhiteElo "2405"]
[BlackElo "2127"]
[Annotator "ChessBase"]
[PlyCount "91"]
[EventDate "2018.10.05"]
[EventType "swiss"]
[EventCountry "IND"]
[SourceTitle "playchess.com"]
[Source "ChessBase"]
[SourceQuality "1"]
[TimeControl "5400+30"]

1. Nf3 {[%emt 0:00:00]} d5 {[%emt 0:00:01]} 2. d4 {[%emt 0:00:19]} Nf6 {[%emt 0:00:21]} 3. c4 {[%emt 0:00:07]} e6 {[%emt 0:00:13]} 4. g3 {[%emt 0:00:18]} b6 {[%emt 0:02:11]} 5. Bg2 {[%emt 0:00:47]} Bb7 {[%emt 0:00:38]} 6. cxd5 {[%emt 0:00:08]} exd5 {[%emt 0:01:16]} 7. Nc3 {[%emt 0:01:06]} Bd6 {[%emt 0:03:12]} 8. O-O {[%emt 0:10:18]} c6 {[%emt 0:06:15]} 9. Nh4 {[%emt 0:08:00]} O-O {[%emt 0:15:42]} 10. Nf5 {[%emt 0:00:44]} g6 {[%emt 0:12:40]} 11. Nxd6 {[%emt 0:00:59]} Qxd6 {[%emt 0:00:06]} 12. Bf4 {[%emt 0:01:17]} Qe6 {[%emt 0:00:27]} 13. Qb3 {[%emt 0:16:24]} Nbd7 {[%emt 0:01:38]} 14. Rad1 {[%emt 0:02:16]} Rfe8 {[%emt 0:01:13]} 15. Rfe1 {[%emt 0:00:16]} Nh5 {[%emt 0:07:40]} 16. Bc1 {[%emt 0:01:16]} f5 {[%emt 0:00:43]} 17. f3 {[%emt 0:07:30]} Nhf6 {[%emt 0:12:09]} 18. Bh3 {[%emt 0:05:34]} Re7 {[%emt 0:13:13]} 19. e4 {[%emt 0:06:29]} dxe4 {[%emt 0:11:10]} 20. Qxe6+ {[%emt 0:03:32]} Rxe6 {[%emt 0:00:04]} 21. fxe4 {[%emt 0:00:10]} Rae8 {[%emt 0:00:15]} 22. e5 {[%emt 0:06:01]} c5 {[%emt 0:04:37]} 23. Nb5 {[%emt 0:11:08]} cxd4 {[%emt 0:01:11]} 24. Nc7 {[%emt 0:01:04]} Nxe5 {[%emt 0:00:21]} 25. Nxe8 {[%emt 0:00:47]} Nf3+ {[%emt 0:03:54]} 26. Kf2 {[%emt 0:00:51]} Ne4+ {[%emt 0:00:31]} 27. Kxf3 {[%emt 0:05:54]} Rxe8 {[%emt 0:01:10]} 28. Rxe4 {[%emt 0:01:44]} fxe4+ {[%emt 0:00:12]} 29. Kf2 {[%emt 0:00:33]} Rf8+ {[%emt 0:00:50]} 30. Ke1 {[%emt 0:00:15]} d3 {[%emt 0:00:16]} 31. Be3 {[%emt 0:00:24]} Bd5 {[%emt 0:00:29]} 32. b3 {[%emt 0:00:35]} Rf6 {[%emt 0:00:47]} 33. Rc1 {[%emt 0:00:22]} a5 {[%emt 0:00:30]} 34. Rc8+ {[%emt 0:01:23]} Kf7 {[%emt 0:00:04]} 35. Rc7+ {[%emt 0:00:48]} Ke8 {[%emt 0:00:36]} 36. Kd2 {[%emt 0:01:28]} h6 {[%emt 0:00:46]} 37. Bg2 {[%emt 0:02:51]} b5 {[%emt 0:00:36]} 38. Rc5 {[%emt 0:00:16]} Bc6 {[%emt 0:00:16]} 39. Bxe4 {[%emt 0:00:22]} Bxe4 {[%emt 0:00:37]} 40. Re5+ {[%emt 0:00:07]} Kf7 {[%emt 0:00:07]} 41. Rxe4 {[%emt 0:00:05]} Rf1 {[%emt 0:00:13]} 42. Rf4+ {[%emt 0:00:06]} Rxf4 {[%emt 0:00:06]} 43. Bxf4 {[%emt 0:00:04]} g5 {[%emt 0:00:07]} 44. Bc7 {[%emt 0:00:28]} a4 {[%emt 0:00:10]} 45. Kxd3 {[%emt 0:00:06]} Ke6 {[%emt 0:00:04]} 46. Ke4 1-0

[Event "1st Gujarat GM Open 2018"]
[Site "Ahmedabad"]
[Date "2018.10.07"]
[Round "3"]
[White "Raghunandan, Kaumandur Srihari"]
[Black "Saranya, J."]
[Result "1-0"]
[ECO "E71"]
[WhiteElo "2394"]
[BlackElo "2071"]
[Annotator "NA"]
[PlyCount "91"]
[EventDate "2018.10.05"]
[EventType "swiss"]
[EventCountry "IND"]
[SourceTitle "playchess.com"]
[Source "ChessBase"]
[SourceQuality "1"]
[TimeControl "5400+30"]

1. d4 {[%emt 0:00:00]} Nf6 {[%emt 0:00:00]} 2. c4 {[%emt 0:00:00]} g6 {[%emt 0:00:00]} 3. Nc3 {[%emt 0:00:04]} Bg7 {[%emt 0:00:00]} 4. e4 {[%emt 0:00:08]} d6 {[%emt 0:00:00]} 5. h3 {[%emt 0:00:49]} O-O {[%emt 0:00:20]} 6. Be3 {[%emt 0:00:16]} e5 {[%emt 0:00:17]} 7. d5 {[%emt 0:00:24]} a5 {[%emt 0:00:52]} 8. g4 {[%emt 0:01:02]} Na6 {[%emt 0:00:37]} 9. Nge2 {[%emt 0:00:32]} Nc5 {[%emt 0:01:14]} 10. Ng3 {[%emt 0:00:43]} Nfd7 {[%emt 0:07:47]} 11. h4 {[%emt 0:02:16]} c6 {[%emt 0:17:42]} 12. h5 {[%emt 0:13:34]} cxd5 {[%emt 0:02:37]} 13. cxd5 {[%emt 0:01:01]} Nf6 {[%emt 0:06:46]} 14. f3 {[%emt 0:04:37]} Bd7 {[%emt 0:02:17]} 15. Qd2 {[%emt 0:03:59]} Ne8 {[%emt 0:04:32]} 16. Qh2 {[%emt 0:09:48]} g5 {[%emt 0:09:34]} 17. Qd2 {[%emt 0:04:51]} h6 {[%emt 0:02:13]} 18. Bb5 {[%emt 0:01:36]} Bf6 {[%emt 0:14:47]} 19. Bxd7 {[%emt 0:01:46]} Qxd7 {[%emt 0:00:28]} 20. Qe2 {[%emt 0:09:35]} Nc7 {[%emt 0:11:07]} 21. Nf5 {[%emt 0:01:14]} Kh7 {[%emt 0:01:08]} 22. O-O {[%emt 0:02:36]} a4 {[%emt 0:07:08]} 23. Rac1 {[%emt 0:04:20]} b6 {[%emt 0:00:33]} 24. Rfd1 {[%emt 0:06:54]} Rfb8 {[%emt 0:02:18]} 25. Nb1 {[%emt 0:03:17]} Nb5 {[%emt 0:03:53]} 26. Nd2 {[%emt 0:03:35]} Nd4 {[%emt 0:03:41]} 27. Bxd4 {[%emt 0:00:12]} exd4 {[%emt 0:00:02]} 28. Nc4 {[%emt 0:00:15]} Be5 {[%emt 0:00:13]} 29. Nxd4 {[%emt 0:00:28]} Bf4 {[%emt 0:01:28]} 30. Rc2 {[%emt 0:00:56]} b5 {[%emt 0:00:43]} 31. Ne3 {[%emt 0:00:21]} b4 {[%emt 0:00:31]} 32. Nc6 {[%emt 0:01:49]} Rb7 {[%emt 0:00:08]} 33. Rc4 {[%emt 0:01:37]} b3 {[%emt 0:00:57]} 34. a3 {[%emt 0:00:08]} Re8 {[%emt 0:00:26]} 35. Nf5 {[%emt 0:00:57]} Qc7 {[%emt 0:00:36]} 36. Qf2 {[%emt 0:01:08]} Rb5 {[%emt 0:00:27]} 37. Qd4 {[%emt 0:01:04]} Be5 {[%emt 0:00:23]} 38. Nxe5 {[%emt 0:00:25]} dxe5 {[%emt 0:00:44]} 39. Qe3 {[%emt 0:01:07]} Qb6 {[%emt 0:00:23]} 40. Kg2 {[%emt 0:00:50]} Nd7 {[%emt 0:00:27]} 41. Rdc1 {[%emt 0:01:06]} Qd8 {[%emt 0:00:40]} 42. Nd6 {[%emt 0:00:43]} Rb6 {[%emt 0:00:10]} 43. Nxe8 {[%emt 0:01:05]} Qxe8 {[%emt 0:00:02]} 44. Rc7 {[%emt 0:00:40]} Rf6 {[%emt 0:01:00]} 45. Qa7 {[%emt 0:00:48]} Nb6 {[%emt 0:00:13]} 46. R1c6 {[%emt 0:00:58]} 1-0

[Event "1st Gujarat GM Open 2018"]
[Site "Ahmedabad"]
[Date "2018.10.07"]
[Round "3"]
[White "Audi Ameya"]
[Black "Anusha N L V"]
[Result "0-1"]
[ECO "B13"]
[WhiteElo "2375"]
[BlackElo "1985"]
[Annotator "NA"]
[PlyCount "55"]
[EventDate "2018.10.05"]
[EventType "swiss"]
[EventCountry "IND"]
[SourceTitle "playchess.com"]
[Source "ChessBase"]
[SourceQuality "1"]
[TimeControl "5400+30"]

1. e4 {[%emt 0:00:24]} c6 {[%emt 0:00:00]} 2. d4 {[%emt 0:00:05]} d5 {[%emt 0:00:00]} 3. exd5 {[%emt 0:00:03]} cxd5 {[%emt 0:00:05]} 4. c4 {[%emt 0:00:05]} Nf6 {[%emt 0:00:34]} 5. Nc3 {[%emt 0:00:11]} Nc6 {[%emt 0:00:14]} 6. Bg5 {[%emt 0:00:04]} Be6 {[%emt 0:00:48]} 7. a3 {[%emt 0:00:54]} Qd7 {[%emt 0:02:23]} 8. Nf3 {[%emt 0:02:30]} Rd8 {[%emt 0:07:25]} 9. c5 {[%emt 0:06:09]} Ne4 {[%emt 0:03:37]} 10. Be3 {[%emt 0:01:51]} g6 {[%emt 0:02:36]} 11. Bb5 {[%emt 0:07:43]} Bg7 {[%emt 0:08:39]} 12. Ne5 {[%emt 0:01:25]} Bxe5 {[%emt 0:10:16]} 13. dxe5 {[%emt 0:00:46]} d4 {[%emt 0:03:21]} 14. Nxe4 {[%emt 0:00:10]} dxe3 {[%emt 0:00:11]} 15. f4 {[%emt 0:23:12]} Qc7 {[%emt 0:07:58]} 16. Qa4 {[%emt 0:24:21]} O-O {[%emt 0:16:36]} 17. Bxc6 {[%emt 0:00:24]} bxc6 {[%emt 0:03:13]} 18. O-O {[%emt 0:00:46]} Rd3 {[%emt 0:02:11]} 19. Qc2 {[%emt 0:15:35]} Rfd8 {[%emt 0:02:14]} 20. Rfd1 {[%emt 0:00:02]} Rxd1+ {[%emt 0:06:25]} 21. Rxd1 {[%emt 0:00:46]} Bf5 {[%emt 0:00:39]} 22. Re1 {[%emt 0:03:29]} Rd4 {[%emt 0:04:22]} 23. Rxe3 {[%emt 0:00:09]} Qd7 {[%emt 0:00:15]} 24. h3 {[%emt 0:06:09]} Qd5 {[%emt 0:00:59]} 25. Nf6+ {[%emt 0:00:09]} exf6 {[%emt 0:00:09]} 26. exf6 {[%emt 0:00:02]} h6 {[%emt 0:01:12]} 27. Re8+ {[%emt 0:01:01]} Kh7 {[%emt 0:00:07]} 28. Re7 {[%emt 0:00:18]} 0-1

[Event "1st Gujarat GM Open 2018"]
[Site "Ahmedabad"]
[Date "2018.10.07"]
[Round "3"]
[White "Sidhant, Mohapatra"]
[Black "Satkar, Chirag"]
[Result "1-0"]
[ECO "C55"]
[WhiteElo "2341"]
[BlackElo "2089"]
[Annotator "NA"]
[PlyCount "129"]
[EventDate "2018.10.05"]
[EventType "swiss"]
[EventCountry "IND"]
[SourceTitle "playchess.com"]
[Source "ChessBase"]
[SourceQuality "1"]
[TimeControl "5400+30"]

1. e4 {[%emt 0:00:11]} e5 {[%emt 0:00:00]} 2. Nf3 {[%emt 0:00:31]} Nc6 {[%emt 0:00:06]} 3. Bc4 {[%emt 0:00:33]} Nf6 {[%emt 0:00:40]} 4. d3 {[%emt 0:00:07]} h6 {[%emt 0:00:00]} 5. c3 {[%emt 0:01:32]} d6 {[%emt 0:07:37]} 6. a4 {[%emt 0:00:58]} g6 {[%emt 0:10:35]} 7. a5 a6 {[%emt 0:04:09]} 8. Qb3 {[%emt 0:13:23]} Qe7 {[%emt 0:00:59]} 9. Nbd2 {[%emt 0:00:35]} Bg7 {[%emt 0:00:22]} 10. Nf1 {[%emt 0:01:15]} O-O {[%emt 0:01:33]} 11. Ng3 {[%emt 0:00:58]} Rb8 {[%emt 0:14:12]} 12. O-O {[%emt 0:07:12]} Bg4 {[%emt 0:12:13]} 13. Nh4 {[%emt 0:01:42]} Kh7 {[%emt 0:01:33]} 14. h3 {[%emt 0:00:37]} Be6 {[%emt 0:12:29]} 15. Bxe6 {[%emt 0:05:18]} Qxe6 {[%emt 0:00:50]} 16. Qxe6 {[%emt 0:00:38]} fxe6 {[%emt 0:00:02]} 17. Nf3 {[%emt 0:00:41]} Nd7 {[%emt 0:00:44]} 18. b4 {[%emt 0:00:20]} Rfd8 {[%emt 0:07:35]} 19. Bd2 {[%emt 0:01:49]} d5 {[%emt 0:05:17]} 20. Rfb1 {[%emt 0:01:35]} Na7 {[%emt 0:01:54]} 21. Be3 {[%emt 0:09:54]} Nb5 {[%emt 0:01:22]} 22. Ne2 {[%emt 0:01:56]} dxe4 {[%emt 0:04:37]} 23. dxe4 {[%emt 0:00:27]} Nf6 {[%emt 0:00:17]} 24. Nd2 {[%emt 0:02:36]} Rd3 {[%emt 0:01:15]} 25. c4 {[%emt 0:00:33]} Nd4 {[%emt 0:02:32]} 26. Nc1 {[%emt 0:02:31]} Rc3 {[%emt 0:00:58]} 27. b5 {[%emt 0:03:24]} Rd8 {[%emt 0:03:46]} 28. bxa6 {[%emt 0:01:10]} bxa6 {[%emt 0:00:07]} 29. Na2 {[%emt 0:00:07]} Ra3 {[%emt 0:00:36]} 30. Nb4 {[%emt 0:00:07]} Rxa1 {[%emt 0:04:13]} 31. Rxa1 {[%emt 0:00:01]} Ra8 {[%emt 0:00:36]} 32. Bxd4 {[%emt 0:00:43]} exd4 {[%emt 0:00:03]} 33. Nc6 {[%emt 0:00:12]} Nd7 {[%emt 0:00:46]} 34. Rb1 {[%emt 0:00:35]} Nc5 {[%emt 0:00:41]} 35. f3 {[%emt 0:00:50]} e5 {[%emt 0:02:03]} 36. Nb3 {[%emt 0:00:52]} Na4 {[%emt 0:00:24]} 37. Nc1 {[%emt 0:00:26]} Nc5 {[%emt 0:00:20]} 38. Kf2 {[%emt 0:01:38]} Kg8 {[%emt 0:00:21]} 39. Ke2 {[%emt 0:00:06]} Kf7 {[%emt 0:00:21]} 40. Nd3 {[%emt 0:00:03]} Kg8 {[%emt 0:00:39]} 41. Nc1 {[%emt 0:00:57]} Kf7 {[%emt 0:00:21]} 42. Nd3 Nd7 {[%emt 0:00:59]} 43. Rb7 {[%emt 0:00:39]} Ke6 {[%emt 0:00:36]} 44. c5 {[%emt 0:01:14]} Bf8 {[%emt 0:00:40]} 45. Rxc7 {[%emt 0:00:06]} Bxc5 {[%emt 0:00:21]} 46. Ncxe5 {[%emt 0:00:23]} Bd6 {[%emt 0:00:32]} 47. Rxd7 {[%emt 0:00:06]} Bxe5 {[%emt 0:00:08]} 48. Nxe5 {[%emt 0:00:03]} Kxe5 {[%emt 0:00:21]} 49. Rd5+ {[%emt 0:00:03]} Ke6 {[%emt 0:00:12]} 50. Rxd4 {[%emt 0:00:04]} Rb8 {[%emt 0:00:11]} 51. Rd5 {[%emt 0:00:33]} Rb2+ {[%emt 0:00:19]} 52. Kf1 {[%emt 0:00:02]} Ra2 {[%emt 0:00:26]} 53. h4 {[%emt 0:00:04]} Ra1+ {[%emt 0:00:19]} 54. Kf2 {[%emt 0:00:04]} Ra2+ {[%emt 0:00:05]} 55. Kg3 {[%emt 0:00:04]} Ra3 {[%emt 0:00:23]} 56. Kf4 {[%emt 0:00:27]} Ra2 {[%emt 0:00:27]} 57. g3 {[%emt 0:00:05]} Ra3 {[%emt 0:00:24]} 58. Kg4 {[%emt 0:00:44]} Rb3 {[%emt 0:00:31]} 59. h5 {[%emt 0:00:11]} g5 {[%emt 0:00:11]} 60. Rd8 {[%emt 0:00:03]} Rb5 {[%emt 0:00:16]} 61. Rh8 {[%emt 0:00:04]} Rxa5 {[%emt 0:00:23]} 62. Rxh6+ {[%emt 0:00:04]} Kf7 {[%emt 0:00:11]} 63. Rb6 {[%emt 0:00:05]} Kg7 {[%emt 0:00:35]} 64. Rg6+ {[%emt 0:00:24]} Kh7 {[%emt 0:00:07]} 65. Rb6 {[%emt 0:00:12]} 1-0

[Event "1st Gujarat GM Open 2018"]
[Site "Ahmedabad"]
[Date "2018.10.07"]
[Round "3"]
[White "Mohammad Minhaz Uddin"]
[Black "Bhatt, Jalpan"]
[Result "1-0"]
[ECO "B27"]
[WhiteElo "2328"]
[BlackElo "1983"]
[Annotator "NA"]
[PlyCount "165"]
[EventDate "2018.10.05"]
[EventType "swiss"]
[EventCountry "IND"]
[SourceTitle "playchess.com"]
[Source "ChessBase"]
[SourceQuality "1"]
[TimeControl "5400+30"]

1. e4 {[%emt 0:00:00]} c5 {[%emt 0:00:28]} 2. Nf3 {[%emt 0:00:00]} g6 {[%emt 0:01:35]} 3. c3 {[%emt 0:05:28]} Bg7 {[%emt 0:00:30]} 4. d4 {[%emt 0:00:15]} cxd4 {[%emt 0:00:02]} 5. cxd4 {[%emt 0:00:12]} d5 {[%emt 0:00:06]} 6. exd5 {[%emt 0:02:50]} Nf6 {[%emt 0:00:06]} 7. Nc3 {[%emt 0:00:07]} O-O {[%emt 0:03:03]} 8. Bc4 {[%emt 0:01:41]} Nbd7 {[%emt 0:00:48]} 9. O-O {[%emt 0:01:36]} Nb6 {[%emt 0:00:04]} 10. Bb3 {[%emt 0:00:09]} Nbxd5 {[%emt 0:01:18]} 11. Re1 {[%emt 0:00:36]} Be6 {[%emt 0:22:17]} 12. Rxe6 {[%emt 0:14:37]} fxe6 {[%emt 0:01:35]} 13. Ng5 {[%emt 0:00:04]} Qb6 {[%emt 0:12:28]} 14. Qe2 {[%emt 0:03:17]} Nc7 {[%emt 0:06:06]} 15. Bf4 {[%emt 0:20:49]} Nfd5 {[%emt 0:02:21]} 16. Nxd5 {[%emt 0:00:23]} exd5 {[%emt 0:09:14]} 17. Bxc7 {[%emt 0:03:29]} Qxc7 {[%emt 0:00:04]} 18. Bxd5+ {[%emt 0:02:52]} Kh8 {[%emt 0:01:10]} 19. Nf7+ {[%emt 0:00:15]} Rxf7 {[%emt 0:02:07]} 20. Bxf7 {[%emt 0:00:04]} Rf8 {[%emt 0:00:24]} 21. Bd5 {[%emt 0:00:12]} Bxd4 {[%emt 0:00:59]} 22. Bf3 {[%emt 0:02:15]} e5 {[%emt 0:08:16]} 23. Rd1 {[%emt 0:01:57]} Qc5 {[%emt 0:01:22]} 24. g3 {[%emt 0:04:47]} Qb6 {[%emt 0:02:53]} 25. Rd2 {[%emt 0:04:38]} Rf7 {[%emt 0:01:40]} 26. Kg2 {[%emt 0:00:19]} Qf6 {[%emt 0:00:29]} 27. h4 {[%emt 0:04:13]} Kg7 {[%emt 0:03:27]} 28. Rc2 {[%emt 0:01:57]} Qb6 {[%emt 0:06:18]} 29. b3 {[%emt 0:02:24]} Rc7 {[%emt 0:01:53]} 30. Be4 {[%emt 0:01:27]} Rf7 {[%emt 0:00:46]} 31. Bf3 {[%emt 0:01:00]} Rc7 {[%emt 0:00:09]} 32. Rd2 {[%emt 0:00:11]} Rf7 {[%emt 0:00:38]} 33. Qe4 {[%emt 0:00:28]} Qf6 {[%emt 0:02:24]} 34. Qd5 {[%emt 0:01:34]} Qf5 {[%emt 0:01:41]} 35. Re2 {[%emt 0:04:47]} Rd7 {[%emt 0:03:21]} 36. Qc4 Qf7 {[%emt 0:00:46]} 37. Qb5 {[%emt 0:03:40]} Re7 {[%emt 0:01:20]} 38. Be4 {[%emt 0:01:38]} b6 {[%emt 0:00:32]} 39. Qd3 {[%emt 0:03:02]} Rc7 {[%emt 0:02:26]} 40. Rd2 {[%emt 0:01:20]} Qf6 {[%emt 0:02:02]} 41. Qe2 {[%emt 0:00:17]} Rf7 {[%emt 0:00:14]} 42. Rc2 {[%emt 0:00:18]} Qd6 {[%emt 0:00:26]} 43. Bf3 {[%emt 0:01:49]} Rc7 {[%emt 0:00:06]} 44. Rd2 {[%emt 0:00:07]} Qf6 {[%emt 0:00:06]} 45. h5 {[%emt 0:00:40]} gxh5 {[%emt 0:01:40]} 46. Bxh5 {[%emt 0:00:15]} Qc6+ {[%emt 0:00:44]} 47. Bf3 {[%emt 0:00:57]} Qf6 {[%emt 0:00:02]} 48. Rd1 {[%emt 0:01:20]} Rf7 {[%emt 0:00:29]} 49. Rh1 {[%emt 0:00:29]} Qf5 {[%emt 0:00:54]} 50. Rh4 {[%emt 0:00:18]} h6 {[%emt 0:00:36]} 51. Re4 {[%emt 0:02:26]} Rf6 {[%emt 0:00:31]} 52. Rg4+ {[%emt 0:01:18]} Kf8 {[%emt 0:00:22]} 53. Rh4 {[%emt 0:00:26]} Kg7 {[%emt 0:00:22]} 54. Rh5 {[%emt 0:01:44]} Qg6 {[%emt 0:00:21]} 55. Rh4 {[%emt 0:01:47]} Qf5 {[%emt 0:00:04]} 56. Re4 {[%emt 0:00:07]} Rf7 {[%emt 0:01:20]} 57. Qd3 {[%emt 0:00:56]} Rf6 {[%emt 0:00:21]} 58. Rg4+ {[%emt 0:00:50]} Kf8 {[%emt 0:00:12]} 59. Qd1 {[%emt 0:01:46]} Rg6 {[%emt 0:00:47]} 60. Rxg6 {[%emt 0:00:29]} Qxg6 {[%emt 0:00:01]} 61. Qc1 {[%emt 0:00:27]} Qf6 {[%emt 0:01:05]} 62. Qc7 {[%emt 0:00:33]} a5 {[%emt 0:00:31]} 63. Qc2 {[%emt 0:00:19]} Bc5 {[%emt 0:00:32]} 64. Qe2 {[%emt 0:00:53]} Bd4 {[%emt 0:00:08]} 65. Be4 {[%emt 0:00:05]} Kg7 {[%emt 0:00:43]} 66. Qg4+ {[%emt 0:00:14]} Kf8 {[%emt 0:00:27]} 67. Qc8+ {[%emt 0:00:20]} Ke7 {[%emt 0:00:44]} 68. f3 {[%emt 0:00:51]} Qg5 {[%emt 0:00:33]} 69. Bd5 {[%emt 0:00:53]} Qf6 {[%emt 0:00:29]} 70. Bc6 {[%emt 0:00:45]} Qd6 {[%emt 0:00:31]} 71. Qe8+ {[%emt 0:00:13]} Kf6 {[%emt 0:00:05]} 72. Be4 {[%emt 0:00:21]} Qe6 {[%emt 0:00:52]} 73. Qf8+ {[%emt 0:00:10]} Qf7 {[%emt 0:00:19]} 74. Qxh6+ {[%emt 0:00:03]} Ke7 {[%emt 0:00:04]} 75. Qc6 {[%emt 0:01:03]} Qe6 {[%emt 0:00:29]} 76. Qa8 {[%emt 0:00:15]} Qh6 {[%emt 0:00:48]} 77. Qb7+ {[%emt 0:00:24]} Kd8 {[%emt 0:00:28]} 78. Qd5+ {[%emt 0:01:04]} Ke7 {[%emt 0:00:10]} 79. Qb7+ {[%emt 0:00:42]} Kd8 {[%emt 0:00:01]} 80. Bf5 {[%emt 0:00:21]} Qd2+ {[%emt 0:00:09]} 81. Kh3 {[%emt 0:00:03]} Qh6+ {[%emt 0:00:52]} 82. Kg4 {[%emt 0:00:10]} Qf6 {[%emt 0:00:35]} 83. Qd7# {[%emt 0:00:03]} 1-0